fUST/lending_fUST_20240319
["ID","MTS","AMOUNT","RATE_DAILY","PERIOD"]
[319518857,1710817840329,-629.49492936,0.00020999,2]
[319518859,1710817840339,-500.70402569,0.00020999,2]
[319518861,1710817840348,-504.06003161,0.00020999,2]
[319518862,1710817840357,-481.64175666,0.00020999,2]
[319518864,1710817840368,-500.0,0.00020999,2]
[319518866,1710817840377,-167.15196075,0.00020999,2]
[319518868,1710817840386,-512.38477909,0.00020999,2]
[319518870,1710817840395,-360.74741418,0.00020999,2]
[319518873,1710817840405,-500.0,0.00020999,2]
[319518874,1710817840413,-500.0,0.00020999,2]
[319518877,1710817840423,-500.0,0.00020999,2]
[319518878,1710817840432,-500.0,0.00020999,2]
[319518881,1710817840441,-594.28857735,0.00020999,2]
[319518882,1710817840450,-198.79820837,0.00020999,2]
[319518884,1710817840459,-155.517345,0.00020999,2]
[319518885,1710817840468,-500.0,0.00020999,2]
[319518886,1710817840477,-500.0,0.00020999,2]
[319518887,1710817840486,-500.0,0.00020999,2]
[319518889,1710817840495,-500.0,0.00020999,2]
[319518891,1710817840504,-500.0,0.00020999,2]
[319518893,1710817840513,-500.0,0.00020999,2]
[319518895,1710817840522,-412.94603323,0.00020999,2]
[319518897,1710817840532,-500.0,0.00020999,2]
[319518899,1710817840541,-500.0,0.00020999,2]
[319518901,1710817840553,-500.0,0.00020999,2]
[319518911,1710817840562,-500.0,0.00020999,2]
[319518912,1710817840665,-500.0,0.00020999,2]
[319518913,1710817840674,-500.0,0.00020999,2]
[319518914,1710817840684,-500.0,0.00020999,2]
[319518916,1710817840693,-500.0,0.00020999,2]
[319518918,1710817840704,-372.0,0.00020999,2]
[319518920,1710817840713,-500.0,0.00020999,2]
[319518922,1710817840722,-500.0,0.00020999,2]
[319518924,1710817840731,-501.99497031,0.00020999,2]
[319518925,1710817840740,-268.33941163,0.00020999,2]
[319518926,1710817840750,-263.90515874,0.00020999,2]
[319518927,1710817840759,-425.03360062,0.00020999,2]
[319518928,1710817840768,-500.0,0.00020999,2]
[319518929,1710817840778,-277.56790401,0.00020999,2]
[319518930,1710817840787,-573.4816901,0.00020999,2]
[319518931,1710817840797,-262.35665096,0.00020999,2]
[319518932,1710817840806,-191060.57215656,0.00021,5]
[319518933,1710817840818,-2559.09444607,0.00021,5]
[319518945,1710817843030,-36965.87882944,0.00021,5]
[319518946,1710817843111,-40000.0,0.00021,5]
[319519225,1710817866873,10000.0,0.00019,2]
[319519226,1710817875060,10000.0,0.00019,2]
[319519227,1710817881074,10000.0,0.00019,2]
[319519228,1710817888190,10000.0,0.00019,2]
[319519229,1710817894168,10000.0,0.00019,2]
[319519230,1710817900173,10000.0,0.00019,2]
[319519231,1710817906731,10000.0,0.00019,2]
[319519232,1710817912547,10000.0,0.00019,2]
[319519233,1710817918237,10000.0,0.00019,2]
[319519234,1710817927451,10000.0,0.00019,2]
[319519235,1710817933975,10000.0,0.00019,2]
[319519236,1710817943388,4456.6,0.00019,2]
[319519237,1710818146870,314.42381959,0.00019,2]
[319519238,1710818162972,312.65899403,0.00019,2]
[319519239,1710818182793,313.18098068,0.00019,2]
[319519240,1710818408817,962.75155417,0.00018043,2]
[319519241,1710818410518,637.13757771,0.00018945,2]
[319519242,1710818604401,16042.20337594,0.00018945,2]
[319519243,1710818614936,312.60129477,0.00018945,2]
[319519244,1710818622321,5215.17023122,0.00018945,2]
[319519245,1710818636882,312.60129477,0.00018945,2]
[319519246,1710818654849,312.60129477,0.00018945,2]
[319519247,1710818672880,312.60129477,0.00018945,2]
[319519248,1710818688861,357.13159477,0.00018945,2]
[319519249,1710818732498,19044.54237814,0.00018945,2]
[319519250,1710818752488,3681.11486608,0.00018945,2]
[319519251,1710818942730,155.76154137,0.00018945,2]
[319519252,1710818991522,155.00930056,0.00018945,2]
[319519253,1710819011497,155.00930056,0.00018945,2]
[319519301,1710819032198,-14601.22128597,0.00019681,2]
[319519692,1710819043348,-2054.23852696,0.00019681,2]
[319519693,1710819043358,-596.6786723,0.00019739,2]
[319519694,1710819043367,-337.02542978,0.00019781,2]
[319519695,1710819043378,-431.05737096,0.00019926,2]
[319519756,1710819608403,187.5384845,0.00018985,2]
[319519814,1710820174705,154.95351395,0.00018985,2]
[319519816,1710820196694,154.95351395,0.00018985,2]
[319519822,1710820218695,154.95351395,0.00018985,2]
[319519877,1710820232605,-187.5384845,0.00019177,2]
[319519879,1710820232616,-400.88974054,0.00019178,2]
[319519881,1710820232625,-1983.081909,0.00019562,2]
[319519883,1710820232634,-490.407841,0.00019616,2]
[319519885,1710820232644,-338.07556843,0.00019948,2]
[319519887,1710820232653,-950.19939843,0.0002,10]
[319519889,1710820232663,-3297.798519,0.00020002,2]
[319519891,1710820232675,-155.0,0.00020548,2]
[319519893,1710820232684,-558.96031964,0.00020899,2]
[319519894,1710820232693,-558.96031961,0.00020899,2]
[319519896,1710820232703,-558.96031961,0.000209,2]
[319519898,1710820232713,-558.96031961,0.000209,2]
[319519900,1710820232723,-4508.20553512,0.000209,2]
[319519902,1710820232733,-177.92805777,0.000209,2]
[319519904,1710820232743,-558.96031961,0.000209,2]
[319519906,1710820232755,-246.30742293,0.000209,2]
[319519908,1710820232765,-177.92805777,0.00020968,2]
[319519910,1710820232774,-428.78877956,0.00020998,2]
[319519912,1710820232784,-213.10742102,0.00020998,2]
[319519914,1710820232794,-555.34414215,0.00020998,2]
[319519916,1710820232804,-886.53014666,0.00020998,2]
[319519918,1710820232814,-2600.72417226,0.00020998,2]
[319519920,1710820232823,-209.01983337,0.00020998,2]
[319519921,1710820232833,-1253.42201579,0.00020998,2]
[319519923,1710820232842,-300.09003809,0.00020998,2]
[319519924,1710820232852,-326.38143345,0.00020999,2]
[319519925,1710820232862,-1264.57664428,0.00020999,2]
[319519926,1710820232871,-277.45257937,0.00020999,2]
[319519927,1710820232881,-500.0,0.00020999,2]
[319519928,1710820232890,-302.55076469,0.00020999,2]
[319519929,1710820232899,-280.71626239,0.00020999,2]
[319519930,1710820232909,-205.10828639,0.00020999,2]
[319519931,1710820232918,-298.72589197,0.00020999,2]
[319519932,1710820232927,-500.0,0.00020999,2]
[319519933,1710820232937,-500.0,0.00020999,2]
[319519934,1710820232946,-500.0,0.00020999,2]
[319519935,1710820232955,-500.0,0.00020999,2]
[319519936,1710820232964,-500.0,0.00020999,2]
[319519938,1710820232973,-500.0,0.00020999,2]
[319519940,1710820232982,-500.0,0.00020999,2]
[319519941,1710820232991,-500.0,0.00020999,2]
[319519943,1710820233001,-500.0,0.00020999,2]
[319519944,1710820233010,-500.0,0.00020999,2]
[319519945,1710820233018,-500.0,0.00020999,2]
[319519947,1710820233027,-500.0,0.00020999,2]
[319519948,1710820233035,-500.0,0.00020999,2]
[319519950,1710820233044,-500.0,0.00020999,2]
[319519952,1710820233052,-500.0,0.00020999,2]
[319519953,1710820233062,-500.0,0.00020999,2]
[319519955,1710820233071,-500.0,0.00020999,2]
[319519957,1710820233080,-500.0,0.00020999,2]
[319519959,1710820233089,-638.3,0.00020999,2]
[319519961,1710820233098,-158.58598085,0.00020999,2]
[319519963,1710820233107,-155.10815147,0.00020999,2]
[319519965,1710820233116,-596.46444731,0.00020999,2]
[319519967,1710820233125,-500.0,0.00020999,2]
[319519969,1710820233134,-500.0,0.00020999,2]
[319519971,1710820233143,-500.0,0.00020999,2]
[319519973,1710820233152,-500.0,0.00020999,2]
[319519975,1710820233161,-500.0,0.00020999,2]
[319519977,1710820233171,-500.0,0.00020999,2]
[319519978,1710820233180,-500.0,0.00020999,2]
[319519980,1710820233189,-500.0,0.00020999,2]
[319519982,1710820233198,-500.0,0.00020999,2]
[319519984,1710820233208,-500.0,0.00020999,2]
[319519986,1710820233217,-500.0,0.00020999,2]
[319519988,1710820233226,-500.0,0.00020999,2]
[319519990,1710820233235,-500.0,0.00020999,2]
[319519992,1710820233245,-189.7,0.00020999,2]
[319519994,1710820233256,-500.0,0.00020999,2]
[319519996,1710820233266,-500.0,0.00020999,2]
[319519998,1710820233276,-500.0,0.00020999,2]
[319520000,1710820233285,-500.0,0.00020999,2]
[319520002,1710820233294,-463.85114371,0.00020999,2]
[319520004,1710820233304,-155.03255684,0.00020999,2]
[319520006,1710820233314,-500.0,0.00020999,2]
[319520008,1710820233323,-500.0,0.00020999,2]
[319520010,1710820233333,-500.0,0.00020999,2]
[319520011,1710820233342,-503.24396035,0.00020999,2]
[319520013,1710820233351,-500.0,0.00020999,2]
[319520015,1710820233361,-589.96866667,0.00020999,2]
[319520017,1710820233370,-593.73479584,0.00020999,2]
[319520019,1710820233380,-500.0,0.00020999,2]
[319520020,1710820233389,-500.53341375,0.00020999,2]
[319520021,1710820233397,-500.0,0.00020999,2]
[319520022,1710820233407,-500.82044998,0.00020999,2]
[319520023,1710820233415,-500.0,0.00020999,2]
[319520024,1710820233428,-500.0,0.00020999,2]
[319520025,1710820233439,-500.0,0.00020999,2]
[319520026,1710820233450,-500.0,0.00020999,2]
[319520027,1710820233462,-500.0,0.00020999,2]
[319520028,1710820233472,-455.02476189,0.00020999,2]
[319520029,1710820233483,-500.0,0.00020999,2]
[319520030,1710820233494,-500.0,0.00020999,2]
[319520031,1710820233506,-500.0,0.00020999,2]
[319520032,1710820233515,-500.0,0.00020999,2]
[319520033,1710820233525,-500.0,0.00020999,2]
[319520034,1710820233535,-500.0,0.00020999,2]
[319520035,1710820233546,-500.0,0.00020999,2]
[319520036,1710820233557,-500.0,0.00020999,2]
[319520037,1710820233568,-500.0,0.00020999,2]
[319520038,1710820233578,-500.0,0.00020999,2]
[319520039,1710820233588,-500.0,0.00020999,2]
[319520040,1710820233598,-427.67348646,0.00020999,2]
[319520041,1710820233609,-35040.31060069,0.00021,5]
[319520042,1710820233624,-5773.22429517,0.00021,5]
[319520043,1710820233638,-2318.46827717,0.00021,5]
[319520044,1710820233650,-2248.71,0.00021,5]
[319520045,1710820233664,-4692.10040569,0.00021,5]
[319520046,1710820233676,-4153.02425628,0.00021,5]
[319520112,1710820234717,154.95351395,0.00018985,2]
[319520206,1710820238485,-1951.38275011,0.00021,5]
[319520207,1710820238498,-651.51,0.00021,5]
[319520208,1710820238512,-16031.20245743,0.00021,5]
[319520209,1710820238525,-13181.78370588,0.00021,5]
[319520210,1710820238538,-113635.19548159,0.00021,5]
[319520211,1710820238552,-2295.25090131,0.00021,5]
[319520212,1710820238565,-306.86049466,0.00021,5]
[319520230,1710820240621,-19500.0,0.00021,5]
[319520231,1710820240646,-2841.76722389,0.00021,5]
[319520312,1710820243631,-270.0,0.00021,5]
[319520314,1710820243646,-7015.64583097,0.00021,5]
[319520345,1710820244978,-1308459.28864025,0.00021,5]
[319520346,1710820244990,-200.23765194,0.00021,2]
[319520347,1710820245000,-174.0,0.00021,2]
[319520348,1710820245012,-4457.52529733,0.00021,2]
[319520349,1710820245022,-582.0,0.00021,2]
[319520350,1710820245032,-511.5493,0.00021,2]
[319520351,1710820245042,-511.5493,0.00021,2]
[319520352,1710820245052,-177.92805777,0.00021036,2]
[319520353,1710820245061,-177.92805777,0.00021104,2]
[319520354,1710820245071,-177.92805777,0.00021172,2]
[319520355,1710820245081,-177.92805777,0.00021239,2]
[319520356,1710820245091,-464.19842055,0.000213,2]
[319520357,1710820245100,-177.92805777,0.00021307,2]
[319520358,1710820245110,-256.50858394,0.00021329,2]
[319520359,1710820245120,-177.92805777,0.00021375,2]
[319520360,1710820245130,-155.10081553,0.0002141,2]
[319520361,1710820245140,-177.92805777,0.00021443,2]
[319520362,1710820245150,-177.92805777,0.00021511,2]
[319520363,1710820245159,-28479.10302827,0.00021611,2]
[319520364,1710820245170,-1119.19193276,0.00021611,2]
[319520365,1710820245180,-314.866229,0.00021611,2]
[319520366,1710820245191,-400154.61987821,0.00021611,60]
[319520367,1710820245202,-116210.29696823,0.00021611,60]
[319520368,1710820245212,-177290.86630249,0.00021611,60]
[319520369,1710820245221,-1964825.32101522,0.00021611,60]
[319520370,1710820245231,-989884.31207442,0.00021611,60]
[319520371,1710820245240,-504526.0400997,0.00021611,60]
[319520395,1710820246486,-6764.8,0.00021611,60]
[319520406,1710820246589,-325.0,0.00021611,60]
[319520424,1710820254906,239.62967945,0.00018985,2]
[319520431,1710820609240,245.20392,0.00018864,2]
[319520439,1710821003257,1032.12852602,0.00018856,2]
[319520440,1710821096534,245.20392,0.00018079,2]
[319520443,1710821252724,24880.0,0.00018886,2]
[319520536,1710821432642,-520.0,0.00019003,2]
[319520544,1710821432702,-2912.98345691,0.00019003,2]
[319520546,1710821432711,-2601.51095234,0.00019003,2]
[319520548,1710821432722,-191.80476881,0.00019003,2]
[319520550,1710821432732,-534.20265257,0.00019004,2]
[319520552,1710821432741,-429.82985668,0.00019005,2]
[319520554,1710821432750,-154.9690062,0.00019005,2]
[319520565,1710821432848,-337.12691269,0.00019005,2]
[319520567,1710821432858,-212.33431703,0.00019005,2]
[319520569,1710821432867,-172.66991508,0.00019006,2]
[319520571,1710821432876,-156.18476097,0.00019006,2]
[319520573,1710821432885,-1608.66817927,0.00019007,2]
[319520575,1710821432894,-331.70941467,0.00019007,2]
[319520577,1710821432903,-154.9690062,0.00019008,2]
[319520579,1710821432912,-300.0,0.00019013,2]
[319520581,1710821432921,-2000.0,0.00019574,2]
[319520583,1710821432930,-1453.63680058,0.0002,2]
[319520681,1710821438581,-115.97278788,0.0002,2]
[319520682,1710821438591,-154.9690062,0.0002,2]
[319520683,1710821438600,-1077.29914386,0.00020339,2]
[319520684,1710821438624,-922.70085614,0.00020339,2]
[319520685,1710821438634,-255.60626864,0.00020548,2]
[319520686,1710821438644,-1708.65866711,0.00020798,2]
[319520688,1710821438654,-735.94,0.00020847,2]
[319520690,1710821438664,-280.69659346,0.00020897,2]
[319520692,1710821438673,-428.51586324,0.00020897,2]
[319520694,1710821438683,-560.04654903,0.00020897,2]
[319520696,1710821438692,-1012.65,0.00020897,2]
[319520697,1710821438701,-1012.65,0.00020897,2]
[319520698,1710821438711,-1012.65,0.00020897,2]
[319520699,1710821438724,-1012.65,0.00020897,2]
[319520700,1710821438733,-1012.65,0.00020897,2]
[319520701,1710821438742,-1012.65,0.00020897,2]
[319520703,1710821438751,-1012.65,0.00020897,2]
[319520704,1710821438760,-500.0,0.00020897,2]
[319520705,1710821438769,-500.0,0.00020897,2]
[319520707,1710821438777,-503.96054317,0.00020897,2]
[319520709,1710821438787,-500.0,0.00020898,2]
[319520710,1710821438796,-500.0,0.00020898,2]
[319520711,1710821438805,-558.73367308,0.00020898,2]
[319520712,1710821438815,-587.00037558,0.00020898,2]
[319520713,1710821438824,-155.25628828,0.00020898,2]
[319520715,1710821438833,-500.0,0.00020898,2]
[319520717,1710821438842,-500.0,0.00020898,2]
[319520719,1710821438851,-500.0,0.00020898,2]
[319520721,1710821438860,-502.2580271,0.00020898,2]
[319520723,1710821438869,-240.71186375,0.00020898,2]
[319520725,1710821438879,-500.0,0.00020898,2]
[319520727,1710821438888,-458.47505049,0.00020898,2]
[319520729,1710821438898,-215.23165686,0.00020898,2]
[319520731,1710821438906,-500.0,0.00020898,2]
[319520733,1710821438915,-646.07691587,0.00020898,2]
[319520735,1710821438924,-500.0,0.00020898,2]
[319520736,1710821438934,-577.30060462,0.00020898,2]
[319520737,1710821438943,-500.0,0.00020898,2]
[319520739,1710821438952,-584.73001512,0.00020898,2]
[319520741,1710821438962,-501.37853065,0.00020898,2]
[319520743,1710821438976,-500.0,0.00020898,2]
[319520745,1710821438985,-500.0,0.00020898,2]
[319520747,1710821438995,-500.0,0.00020898,2]
[319520749,1710821439005,-500.0,0.00020898,2]
[319520751,1710821439019,-500.0,0.00020898,2]
[319520753,1710821439028,-500.0,0.00020898,2]
[319520755,1710821439037,-502.46305671,0.00020898,2]
[319520757,1710821439045,-500.0,0.00020898,2]
[319520759,1710821439055,-500.0,0.00020898,2]
[319520761,1710821439064,-500.0,0.00020898,2]
[319520763,1710821439073,-500.0,0.00020898,2]
[319520764,1710821439082,-500.0,0.00020898,2]
[319520766,1710821439092,-500.0,0.00020898,2]
[319520768,1710821439102,-500.0,0.00020898,2]
[319520770,1710821439112,-500.0,0.00020898,2]
[319520772,1710821439122,-500.0,0.00020898,2]
[319520774,1710821439132,-500.0,0.00020898,2]
[319520776,1710821439142,-500.0,0.00020898,2]
[319520778,1710821439151,-501.06327603,0.00020898,2]
[319520779,1710821439160,-500.0,0.00020898,2]
[319520780,1710821439170,-500.0,0.00020898,2]
[319520781,1710821439180,-500.0,0.00020898,2]
[319520782,1710821439189,-500.0,0.00020898,2]
[319520783,1710821439201,-610.12979184,0.00020898,2]
[319520784,1710821439210,-500.0,0.00020898,2]
[319520785,1710821439226,-299.91050268,0.00020898,2]
[319520786,1710821439236,-500.0,0.00020898,2]
[319520787,1710821439246,-544.23,0.00020898,2]
[319520788,1710821439255,-500.0,0.00020898,2]
[319520789,1710821439264,-544.23,0.00020898,2]
[319520790,1710821439274,-500.0,0.00020898,2]
[319520791,1710821439284,-544.23,0.00020898,2]
[319520792,1710821439293,-405.00182758,0.00020898,2]
[319520793,1710821439303,-544.23,0.00020898,2]
[319520794,1710821439312,-544.23,0.00020898,2]
[319520795,1710821439321,-500.0,0.00020898,2]
[319520796,1710821439331,-500.0,0.00020898,2]
[319520797,1710821439340,-500.0,0.00020898,2]
[319520798,1710821439349,-574.89812749,0.00020898,2]
[319520799,1710821439359,-2779.13,0.00020898,2]
[319520800,1710821439368,-2779.13,0.00020898,2]
[319520801,1710821439379,-2779.13,0.00020898,2]
[319520802,1710821439389,-2779.13,0.00020898,2]
[319520803,1710821439398,-2779.13,0.00020898,2]
[319520804,1710821439407,-329.65800879,0.00020898,2]
[319520805,1710821439416,-500.0,0.00020898,2]
[319520806,1710821439425,-500.0,0.00020898,2]
[319520807,1710821439434,-172.12306341,0.00020898,2]
[319520808,1710821439444,-500.0,0.00020898,2]
[319520809,1710821439453,-500.0,0.00020898,2]
[319520810,1710821439462,-500.0,0.00020898,2]
[319520811,1710821439476,-582.19516059,0.00020898,2]
[319520812,1710821439485,-789.96,0.00020898,2]
[319520813,1710821439496,-789.96,0.00020898,2]
[319520814,1710821439506,-789.96,0.00020898,2]
[319520815,1710821439516,-789.96,0.00020898,2]
[319520816,1710821439526,-789.96,0.00020898,2]
[319520817,1710821439536,-500.0,0.00020898,2]
[319520818,1710821439545,-627.65839439,0.00020898,2]
[319520819,1710821439555,-500.0,0.00020898,2]
[319520820,1710821439565,-500.0,0.00020898,2]
[319520821,1710821439575,-500.0,0.00020898,2]
[319520822,1710821439585,-500.0,0.00020898,2]
[319520823,1710821439595,-500.0,0.00020898,2]
[319520824,1710821439605,-500.0,0.00020898,2]
[319520825,1710821439615,-32784.26,0.00020898,2]
[319520826,1710821439624,-31705.00076195,0.00020898,2]
[319520868,1710821440695,-1079.25923805,0.00020898,2]
[319520870,1710821440705,-12464.06468308,0.00020898,2]
[319520872,1710821440720,-1001.296688,0.00020898,2]
[319520924,1710821443681,-758.76999997,0.00020898,2]
[319520926,1710821443740,-1352.0,0.00020898,2]
[319520927,1710821443801,-17208.12862895,0.00020898,2]
[319520928,1710821443810,-19854.23970091,0.00020898,2]
[319520964,1710821446717,-328.67,0.00020897,2]
[319520978,1710822309493,8050.4257763,0.0001866,2]
[319520979,1710822430450,277.047006,0.00018708,2]
[319520981,1710822588655,310.00930028,0.00018815,2]
[319520999,1710822632384,-337.12691269,0.00019002,2]
[319521000,1710822632395,-154.9690062,0.00019002,2]
[319521001,1710822632404,-154.9690062,0.00019003,2]
[319521002,1710822632414,-2601.51095234,0.00019003,2]
[319521003,1710822632424,-331.70941467,0.00019004,2]
[319521005,1710822632435,-172.66991508,0.00019004,2]
[319521006,1710822632445,-429.82985668,0.00019005,2]
[319521007,1710822632455,-187.5384845,0.00019005,2]
[319521009,1710822632466,-208.20452526,0.000199,2]
[319521011,1710822632477,-183.64965568,0.00019999,2]
[319521013,1710822632487,-61601.82036379,0.0002,10]
[319521522,1710822637856,-1006.20063554,0.0002,10]
[319521523,1710822637868,-870.72713488,0.0002,10]
[319521640,1710822643067,-984.0,0.0002,10]
[319521703,1710822645783,-33708.64283127,0.0002,10]
[319521710,1710822645846,-60780.84983967,0.0002,10]
[319521784,1710823288716,310.00930028,0.00018941,2]
[319521785,1710823355932,388.108866,0.00018764,2]
[319521787,1710823796554,194.054433,0.00018837,2]
[319521826,1710823832014,-154.9690062,0.00019111,2]
[319521828,1710823832024,-154.9690062,0.00019112,2]
[319521830,1710823832034,-337.12691269,0.00019112,2]
[319521832,1710823832046,-331.70941467,0.00019113,2]
[319521834,1710823832057,-15278.56744854,0.00019551,2]
[319521836,1710823832066,-3006.200636,0.00019552,2]
[319521838,1710823832075,-260.10766965,0.00019742,2]
[319521840,1710823832085,-911.01058547,0.00019745,2]
[319521842,1710823832095,-171.01281348,0.000198,2]
[319521844,1710823832104,-325.42354236,0.00019898,2]
[319521846,1710823832114,-52652.8326776,0.000199,2]
[319522079,1710823838058,-12090.98472167,0.000199,2]
[319522080,1710823838069,-63722.30981011,0.000199,2]
[319522108,1710823840290,-17810.11194981,0.000199,2]
[319522124,1710823843223,-500.0,0.000199,2]
[319522130,1710823845932,-5947.9991,0.000199,2]
[319522244,1710823849970,337.12691269,0.00018998,2]
[319522245,1710823853088,154.9690062,0.00018764,2]
[319522246,1710823865964,318.26284947,0.00018998,2]
[319522257,1710824289429,194.054433,0.0001877,2]
[319522266,1710824462998,2075.85691976,0.00019,2]
[319522294,1710824957978,-585.06389565,0.000179,2]
[319522295,1710824958024,-11.9400795,0.000179,2]
[319522296,1710824961501,-396.97065141,0.000179,2]
[319522297,1710824961715,-8.10144187,0.000179,2]
[319522298,1710824968824,-421.23325955,0.000179,2]
[319522299,1710824968959,-8.59659713,0.000179,2]
[319522300,1710824969247,156.18476097,0.000179,2]
[319522301,1710824969287,179.26602023,0.000179,2]
[319522302,1710824971140,77.18588122,0.000179,2]
[319522303,1710824971169,259.65455062,0.000179,2]
[319522304,1710824972548,154.9690062,0.000179,2]
[319522309,1710824973818,212.33431703,0.00017899,2]
[319522310,1710824981230,-154.9690062,0.000179,2]
[319522311,1710824981255,-148.77024595,0.000179,2]
[319522312,1710824981374,-6.19876025,0.000179,2]
[319522313,1710824983272,171.06575112,0.000179,2]
[319522314,1710824991014,-154.9690062,0.00017899,2]
[319522315,1710824991039,-321.97584625,0.000179,2]
[319522316,1710824991283,-9.73356842,0.000179,2]
[319522321,1710825001842,-154.9690062,0.00017897,2]
[319522322,1710825001872,-180.68833469,0.00017898,2]
[319522323,1710825001944,-6.85014981,0.00017898,2]
[319522324,1710825005848,-604.50498424,0.00017897,2]
[319522325,1710825005980,-12.33683641,0.00017897,2]
[319522350,1710825032251,-154.9690062,0.00017901,2]
[319522351,1710825032260,-201.0968214,0.00017906,2]
[319522352,1710825032270,-153.38336131,0.000189,2]
[319522353,1710825032279,-4729.28141109,0.00018999,2]
[319522354,1710825032295,-42992.59030579,0.00018999,2]
[319522355,1710825032303,-59268.32682421,0.00019,2]
[319522356,1710825032315,-70923.081603,0.00019,2]
[319522357,1710825032323,-153.38336129,0.00019198,2]
[319522358,1710825032332,-153.38336129,0.00019496,2]
[319522359,1710825032341,-2000.0,0.00019551,2]
[319522360,1710825032350,-120123.53958017,0.00019793,2]
[319522361,1710825032359,-153.38336129,0.00019794,2]
[319522362,1710825032369,-1083.71973576,0.00019894,2]
[319522363,1710825032377,-522.52680238,0.00019998,2]
[319522364,1710825032386,-327.17908683,0.00019998,2]
[319522365,1710825032395,-14340.08977964,0.00019998,2]
[319522366,1710825032403,-933.06469044,0.00019998,2]
[319522367,1710825032412,-748.21812988,0.00019998,2]
[319522368,1710825032421,-155.61922832,0.00019998,2]
[319522369,1710825032430,-323.06924637,0.00019998,2]
[319522370,1710825032439,-674.15543507,0.00019998,2]
[319522371,1710825032448,-2495.08229596,0.00019998,2]
[319522372,1710825032457,-1902.06126316,0.00019998,2]
[319522373,1710825032468,-1883.30131368,0.00019998,2]
[319522374,1710825032477,-583.64594004,0.00019998,2]
[319522375,1710825032486,-4350.25934658,0.00019998,2]
[319522376,1710825032495,-599.5325605,0.00019998,2]
[319522377,1710825032504,-339.38143182,0.00019998,2]
[319522378,1710825032513,-156.54352758,0.00019998,2]
[319522379,1710825032522,-209.06824169,0.00019998,2]
[319522380,1710825032531,-310.32118497,0.00019998,2]
[319522381,1710825032540,-182.74069638,0.00019998,2]
[319522382,1710825032549,-301.63090743,0.00019998,2]
[319522383,1710825032558,-253.3313759,0.00019998,2]
[319522384,1710825032567,-155.40940715,0.00019998,2]
[319522385,1710825032576,-195.60308801,0.00019998,2]
[319522386,1710825032585,-302.07340121,0.00019998,2]
[319522387,1710825032596,-331.70941467,0.00019998,2]
[319522388,1710825032604,-154.9690062,0.00019998,2]
[319522389,1710825032613,-210.59279005,0.00019998,2]
[319522390,1710825032622,-620.81857043,0.00019998,2]
[319522391,1710825032630,-173.48664386,0.00019998,2]
[319522392,1710825032639,-1956.3222818,0.00019999,2]
[319522393,1710825032648,-98324.91108839,0.0002,10]
[319522394,1710825032657,-91760.83606289,0.0002,10]
[319522432,1710825038191,-9653.55415541,0.0002,10]
[319522434,1710825038201,-275.2846125,0.0002,2]
[319522435,1710825038215,-151.0,0.0002,2]
[319522438,1710825038225,-151.0,0.0002,2]
[319522439,1710825038236,-151.873166,0.0002,2]
[319522441,1710825038246,-200.0,0.0002,2]
[319522443,1710825038255,-151.078779,0.0002,2]
[319522445,1710825038266,-155.0,0.00020548,2]
[319522447,1710825038276,-582.0,0.000207,2]
[319522450,1710825038286,-630.7719769,0.00020765,2]
[319522451,1710825038297,-500.0,0.00020821,2]
[319522453,1710825038307,-505.45302287,0.00020821,2]
[319522455,1710825038317,-155.67047259,0.00020821,2]
[319522457,1710825038326,-475.08452764,0.00020821,2]
[319522459,1710825038336,-501.12296092,0.00020821,2]
[319522461,1710825038346,-500.0,0.00020821,2]
[319522463,1710825038357,-500.0,0.00020821,2]